fUST/lending_fUST_20250107
["ID","MTS","AMOUNT","RATE_DAILY","PERIOD"]
[347938074,1736227717405,1000.0,0.0001,2]
[347938079,1736227747121,-300.0,0.00016999,2]
[347938080,1736227747144,-1501.29722919,0.00017,7]
[347938081,1736227759080,-21455.26432065,0.00017,7]
[347938082,1736227760112,-8176.81244042,0.00017,7]
[347938083,1736227760133,-99.99623161,0.00017,2]
[347938084,1736227767134,-1207.28899171,0.00017,2]
[347938100,1736227832108,-300.0,0.00019177,2]
[347938101,1736227832119,-1338.97718917,0.00019178,2]
[347938102,1736227832132,-5721.43939826,0.00019178,2]
[347938103,1736227832141,-3713.77908058,0.00019178,2]
[347938104,1736227832173,-1778.56564325,0.00019178,2]
[347938105,1736227832236,-544.61088897,0.00019178,2]
[347938111,1736227838010,-2962.68,0.00019178,2]
[347938112,1736227838202,-6841.23142051,0.00019178,2]
[347938113,1736227838213,-860.81001428,0.00019178,2]
[347938114,1736227838224,-16637.5909585,0.00019178,2]
[347938120,1736227840115,-2169.64031312,0.00019178,2]
[347938121,1736227842986,-1016.0,0.00019178,2]
[347938126,1736227883012,181.26713474,0.00013973,2]
[347938127,1736227883034,218.73286526,0.00013973,2]
[347938132,1736228184072,16533.14915758,0.00025,120]
[347938137,1736228653681,150.65,0.00013699,2]
[347938138,1736228653999,150.65,0.00013699,2]
[347938139,1736228654302,150.65833012,0.00013699,2]
[347938142,1736228730127,-152.02301642,0.00016775,2]
[347938145,1736228838093,-295.6006045,0.00016441,2]
[347938703,1736228857535,400.0,0.00013973,2]
[347940496,1736228945107,-291.75834332,0.00016441,2]
[347940497,1736228945130,-368.20775011,0.00016607,2]
[347940498,1736228945151,-729.0913185,0.00017725,2]
[347940499,1736228945172,-4262.5158753,0.00017742,2]
[347940500,1736228945194,-747.7645487,0.00017873,2]
[347940501,1736228945217,-389.241406,0.00017911,2]
[347940653,1736229038120,-1040.19,0.00018062,2]
[347940654,1736229038133,-7719.8409257,0.00018062,2]
[347940655,1736229038143,-476.627,0.0001822,2]
[347940656,1736229038152,-153.0,0.00018852,2]
[347940657,1736229038162,-300.0,0.00018899,2]
[347940658,1736229038172,-2958.03985226,0.000189,2]
[347940659,1736229038181,-705.8146816,0.00018986,2]
[347940660,1736229038192,-176.0,0.00018996,2]
[347940661,1736229038202,-176.0,0.00018996,2]
[347940662,1736229038213,-176.0,0.00018996,2]
[347940663,1736229038223,-179.51,0.00018996,2]
[347940664,1736229038232,-154.33,0.00019,2]
[347940665,1736229038242,-302.84859387,0.00019,2]
[347940666,1736229038252,-2958.0398521,0.00019072,2]
[347940667,1736229038262,-152.0,0.00019169,2]
[347940668,1736229038272,-152.0,0.00019169,2]
[347940669,1736229038282,-152.0,0.00019169,2]
[347940670,1736229038291,-152.0,0.00019169,2]
[347940671,1736229038301,-152.0,0.00019169,2]
[347940672,1736229038311,-152.0,0.00019169,2]
[347940673,1736229038321,-190.82,0.00019169,2]
[347940674,1736229038330,-330.72940125,0.00019177,2]
[347940675,1736229038340,-245.853,0.00019177,2]
[347940676,1736229038352,-500.0,0.00019177,2]
[347940677,1736229038362,-5012.57505803,0.00019178,2]
[347940678,1736229038371,-39159.57033699,0.00019178,2]
[347940679,1736229038381,-156.025655,0.00019178,2]
[347940680,1736229038392,-156.025655,0.00019178,2]
[347940681,1736229038401,-156.025655,0.00019178,2]
[347940682,1736229038411,-156.025655,0.00019178,2]
[347940683,1736229038422,-385.880279,0.00019178,2]
[347940684,1736229038432,-385.880279,0.00019178,2]
[347940685,1736229038442,-385.880279,0.00019178,2]
[347940686,1736229038451,-223.806428,0.00019178,2]
[347940687,1736229038460,-223.806428,0.00019178,2]
[347940688,1736229038470,-223.806428,0.00019178,2]
[347940689,1736229038480,-223.806428,0.00019178,2]
[347940690,1736229038490,-198.387436,0.00019178,2]
[347940691,1736229038499,-151.0,0.00019178,2]
[347940692,1736229038509,-151.0,0.00019178,2]
[347940693,1736229038518,-151.0,0.00019178,2]
[347940694,1736229038528,-151.0,0.00019178,2]
[347940695,1736229038537,-229.518069,0.00019178,2]
[347940696,1736229038547,-1579.395063,0.00019178,2]
[347940697,1736229038556,-227.200846,0.00019178,2]
[347940698,1736229038566,-1579.395063,0.00019178,2]
[347940699,1736229038576,-1579.395063,0.00019178,2]
[347940700,1736229038585,-1579.395063,0.00019178,2]
[347940701,1736229038595,-227.200846,0.00019178,2]
[347940702,1736229038606,-151.0,0.00019178,2]
[347940703,1736229038615,-251.827136,0.00019178,2]
[347940704,1736229038626,-151.0,0.00019178,2]
[347940705,1736229038636,-151.0,0.00019178,2]
[347940706,1736229038646,-151.0,0.00019178,2]
[347940707,1736229038655,-514.21120541,0.00019178,2]
[347940708,1736229038664,-151.0,0.00019178,2]
[347940709,1736229038674,-151.0,0.00019178,2]
[347940710,1736229038684,-151.0,0.00019178,2]
[347940711,1736229038693,-501.3606596,0.00019178,2]
[347940712,1736229038703,-500.0,0.00019178,2]
[347940713,1736229038713,-501.92956961,0.00019178,2]
[347940714,1736229038722,-151.0,0.00019178,2]
[347940715,1736229038733,-151.0,0.00019178,2]
[347940716,1736229038743,-151.0,0.00019178,2]
[347940717,1736229038752,-504.35135708,0.00019178,2]
[347940718,1736229038762,-168.61716528,0.00019178,2]
[347940719,1736229038775,-335.80285353,0.00019178,2]
[347940720,1736229038785,-500.0,0.00019178,2]
[347940721,1736229038795,-263.32850098,0.00019178,2]
[347940722,1736229038814,-200.71505102,0.00019178,2]
[347940723,1736229038824,-464.043552,0.00019178,2]
[347940724,1736229038834,-464.043552,0.00019178,2]
[347940725,1736229038843,-464.043552,0.00019178,2]
[347940726,1736229038852,-464.043552,0.00019178,2]
[347940727,1736229038861,-464.043552,0.00019178,2]
[347940728,1736229038870,-151.0,0.00019178,2]
[347940729,1736229038880,-537.72078595,0.00019178,2]
[347940730,1736229038890,-500.0,0.00019178,2]
[347940731,1736229038899,-500.0,0.00019178,2]
[347940732,1736229038909,-151.0,0.00019178,2]
[347940733,1736229038919,-151.0,0.00019178,2]
[347940734,1736229038928,-293.325424,0.00019178,2]
[347940735,1736229038938,-432.203207,0.00019178,2]
[347940736,1736229038947,-432.203207,0.00019178,2]
[347940737,1736229038957,-432.203207,0.00019178,2]
[347940738,1736229038967,-432.203207,0.00019178,2]
[347940739,1736229038976,-151.86227,0.00019178,2]
[347940740,1736229038986,-432.203207,0.00019178,2]
[347940741,1736229038995,-503.31103708,0.00019178,2]
[347940742,1736229039005,-432.203207,0.00019178,2]
[347940743,1736229039015,-504.72822213,0.00019178,2]
[347940760,1736229046326,-9.77104108,0.00019178,2]
[347940761,1736229046336,-508.90247428,0.00019178,2]
[347940762,1736229046346,-4.17099625,0.00019178,2]
[347941098,1736229799342,151.12366958,0.00013699,2]
[347941101,1736229928235,400.0,0.00013973,2]
[347941103,1736229963775,150.0,0.00025,120]
[347941104,1736229975126,5000.0,0.00015001,2]
[347941105,1736229983280,5000.0,0.00015001,2]
[347941106,1736229983394,150.0,0.00014,2]
[347941107,1736229983463,349.99778874,0.00014548,2]
[347941108,1736229992405,10000.0,0.00025,120]
[347941109,1736229998260,10000.0,0.00025,120]
[347941110,1736230000153,5000.0,0.00015001,2]
[347941111,1736230002183,10000.0,0.00025,120]
[347941112,1736230004299,10000.0,0.00025,120]
[347941113,1736230009137,10000.0,0.00025,120]
[347941114,1736230010917,10000.0,0.00025,120]
[347941115,1736230011966,10000.0,0.00025,120]
[347941116,1736230014436,10000.0,0.00025,120]
[347941117,1736230015353,1087.37030793,0.00015001,2]
[347941118,1736230019225,10000.0,0.00025,120]
[347941120,1736230037699,5283.0,0.00025,120]
[347941121,1736230051107,-271.57937237,0.0001505,2]
[347941122,1736230062682,500.0,0.00013699,2]
[347941123,1736230071337,500.92128839,0.00013573,2]
[347941124,1736230138976,160.65401929,0.00013573,2]
[347941125,1736230147636,169.0657748,0.00013573,2]
[347941126,1736230149093,-1182.99436098,0.0001505,2]
[347941127,1736230149114,-250.0,0.00016988,2]
[347941128,1736230149163,-183.8183458,0.00017716,2]
[347941138,1736230236037,-1022.3068543,0.00017761,2]
[347941139,1736230236046,-210.6923151,0.00017894,2]
[347941140,1736230236056,-416.37115148,0.00017897,2]
[347941141,1736230236067,-266.57267073,0.00017973,2]
[347941142,1736230236077,-153.05506178,0.00017973,2]
[347941143,1736230236087,-500.0,0.00017973,2]
[347941144,1736230236096,-265.82048342,0.00017973,2]
[347941145,1736230236107,-261.76045906,0.00017973,2]
[347941146,1736230236116,-500.76567719,0.00017973,2]
[347941147,1736230236125,-500.0,0.00017973,2]
[347941148,1736230236135,-260.09054035,0.00017973,2]
[347941149,1736230236144,-283.56037046,0.00017973,2]
[347941150,1736230236153,-166.07666701,0.00017973,2]
[347941151,1736230236163,-476.35833846,0.00017973,2]
[347941152,1736230236173,-627.45864256,0.00017991,2]
[347941153,1736230236182,-500.0,0.00017991,2]
[347941154,1736230236192,-500.0,0.00017991,2]
[347941155,1736230236201,-500.0,0.00017991,2]
[347941156,1736230236211,-500.0,0.00017991,2]
[347941157,1736230236221,-500.0,0.00017991,2]
[347941158,1736230236230,-500.0,0.00017991,2]
[347941159,1736230236239,-156.79013563,0.00017991,2]
[347941161,1736230236251,-343.20986437,0.00017991,2]
[347941162,1736230236260,-500.0,0.00017991,2]
[347941163,1736230236270,-500.0,0.00017991,2]
[347941164,1736230236279,-101.74123009,0.00017991,2]
[347941197,1736230238226,-398.25876991,0.00017991,2]
[347941199,1736230238235,-5.369956,0.00017991,2]
[347941205,1736230238284,-494.630044,0.00017991,2]
[347941207,1736230238294,-500.0,0.00017991,2]
[347941209,1736230238303,-268.26760699,0.00017991,2]
[347941372,1736230239825,-231.73239301,0.00017991,2]
[347941374,1736230239839,-417.86051913,0.00017991,2]
[347941376,1736230239848,-355.47247899,0.00017991,2]
[347941380,1736230239871,-144.52752101,0.00017991,2]
[347941382,1736230239880,-500.0,0.00017991,2]
[347941384,1736230239889,-355.47247899,0.00017991,2]
[347941738,1736230243346,-368.84446236,0.00017811,2]
[347941740,1736230243356,-502.89926254,0.00017973,2]
[347941742,1736230243366,-144.52752101,0.00017991,2]
[347941744,1736230243375,-500.0,0.00017991,2]
[347941746,1736230243385,-500.0,0.00017991,2]
[347941748,1736230243395,-500.0,0.00017991,2]
[347941750,1736230243403,-500.0,0.00017991,2]
[347941752,1736230243412,-500.0,0.00017991,2]
[347941754,1736230243422,-500.0,0.00017991,2]
[347941756,1736230243431,-270.71933847,0.00017991,2]
[347942040,1736230246354,-229.28066153,0.00017991,2]
[347942042,1736230246364,-253.70933847,0.00017991,2]
[347942173,1736230275040,391.5289171,0.00016993,2]
[347942174,1736230278244,1223.1585371,0.00016993,2]
[347942175,1736230278266,258.80980079,0.00016993,2]
[347942176,1736230278286,124.98675535,0.00016993,2]
[347942179,1736230417640,500.0,0.00013699,2]
[347942180,1736230417738,1000.0,0.00014247,2]
[347942181,1736230439180,415.51761039,0.00015001,2]
[347942182,1736230441431,151.04925718,0.00013573,2]
[347942183,1736230448869,271.07789297,0.00013573,2]
[347942184,1736230482186,500.0,0.00013699,2]
[347942185,1736230482238,501.32507012,0.00014247,2]
[347942186,1736230515405,168.05448918,0.00013573,2]
[347942196,1736230885742,5000.0,0.00015001,2]
[347942204,1736230894494,5000.0,0.00015001,2]
[347942205,1736230902780,5000.0,0.00015001,2]
[347942206,1736230910859,483.28545588,0.00015001,2]
[347942207,1736230919716,5000.0,0.00015001,2]
[347942208,1736230935125,5000.0,0.00015001,2]
[347942209,1736230937917,250.0,0.00014389,2]
[347942210,1736230950405,1751.67490557,0.00015001,2]
[347942211,1736230950883,922.5629042,0.00014389,2]
[347942232,1736231047898,182.0,0.00015,2]
[347942233,1736231050168,184.6133868,0.00014181,2]
[347942234,1736231069778,400.0,0.00013973,2]
[347942236,1736231185159,2585.698003,0.00014178,2]
[347942242,1736231319938,150.99999926,0.0002,120]
[347942244,1736231348137,-1465.72131816,0.00015073,2]
[347942245,1736231348162,-727.14022231,0.00015074,2]
[347942246,1736231348182,-530.1413278,0.00015077,2]
[347942247,1736231348204,-300.0,0.0001517,2]
[347942248,1736231348225,-114011.0,0.0001517,2]
[347942249,1736231348246,-500.0,0.00015171,2]
[347942250,1736231348266,-518.30563059,0.00015171,2]
[347942251,1736231348285,-500.0,0.00015171,2]
[347942252,1736231348306,-500.0,0.00015171,2]
[347942253,1736231348332,-782.26661179,0.00015171,2]
[347942254,1736231348352,-500.0,0.00015171,2]
[347942255,1736231348372,-500.0,0.00015171,2]
[347942256,1736231348391,-463.59776024,0.00015171,2]
[347942257,1736231348413,-782.26661179,0.00015171,2]
[347942258,1736231348435,-500.0,0.00015171,2]
[347942259,1736231348459,-500.0,0.00015171,2]
[347942260,1736231348483,-500.0,0.00015171,2]
[347942261,1736231348504,-500.0,0.00015171,2]
[347942262,1736231348526,-782.26661179,0.00015171,2]
[347942263,1736231348548,-500.0,0.00015171,2]
[347942264,1736231348569,-500.0,0.00015171,2]
[347942265,1736231348593,-509.36238768,0.00015171,2]
[347942266,1736231348615,-782.26661179,0.00015171,2]
[347942267,1736231348636,-500.0,0.00015171,2]
[347942268,1736231348657,-500.0,0.00015171,2]
[347942269,1736231348680,-782.26661179,0.00015171,2]
[347942270,1736231348701,-500.0,0.00015171,2]
[347942271,1736231348723,-500.0,0.00015171,2]
[347942272,1736231348745,-782.26661179,0.00015171,2]
[347942273,1736231348767,-500.0,0.00015171,2]
[347942274,1736231348789,-782.26661179,0.00015171,2]
[347942275,1736231348811,-500.0,0.00015171,2]
[347942276,1736231348835,-500.0,0.00015171,2]
[347942277,1736231348858,-782.26661179,0.00015171,2]
[347942278,1736231348880,-500.0,0.00015171,2]
[347942279,1736231348902,-500.0,0.00015171,2]
[347942280,1736231348925,-500.0,0.00015171,2]
[347942281,1736231348949,-782.26661179,0.00015171,2]
[347942282,1736231348970,-500.0,0.00015171,2]
[347942283,1736231348993,-500.0,0.00015171,2]
[347942284,1736231349016,-782.26661179,0.00015171,2]
[347942285,1736231349038,-500.0,0.00015171,2]
[347942286,1736231349061,-500.0,0.00015171,2]
[347942287,1736231349086,-782.26661179,0.00015171,2]
[347942288,1736231349107,-500.0,0.00015171,2]
[347942289,1736231349129,-500.0,0.00015171,2]
[347942290,1736231349153,-782.26661179,0.00015171,2]
[347942291,1736231349175,-500.0,0.00015171,2]
[347942292,1736231349197,-500.0,0.00015171,2]
[347942293,1736231349220,-782.26661179,0.00015171,2]
[347942294,1736231349244,-670.77148208,0.00015171,2]
[347942295,1736231351235,-111.49512971,0.00015171,2]
[347942296,1736231351257,-500.0,0.00015171,2]
[347942297,1736231351280,-500.0,0.00015171,2]
[347942298,1736231351302,-500.0,0.00015171,2]
[347942299,1736231351327,-782.26661179,0.00015171,2]
[347942300,1736231351349,-500.0,0.00015171,2]
[347942301,1736231351373,-782.26661179,0.00015171,2]
[347942302,1736231351395,-500.0,0.00015171,2]
[347942304,1736231351417,-500.0,0.00015171,2]
[347942306,1736231351440,-782.26661179,0.00015171,2]
[347942307,1736231351463,-500.0,0.00015171,2]
[347942308,1736231351487,-500.0,0.00015171,2]
[347942309,1736231351509,-782.26661179,0.00015171,2]
[347942310,1736231351530,-500.0,0.00015171,2]
[347942311,1736231351552,-500.0,0.00015171,2]
[347942312,1736231351574,-782.26661179,0.00015171,2]
[347942313,1736231351597,-500.0,0.00015171,2]
[347942314,1736231351619,-500.0,0.00015171,2]
[347942315,1736231351641,-782.26661179,0.00015171,2]
[347942316,1736231351663,-500.0,0.00015171,2]
[347942317,1736231351686,-782.26661179,0.00015171,2]
[347942318,1736231351707,-500.0,0.00015171,2]
[347942319,1736231351729,-487.27869296,0.00015171,2]
[347942320,1736231351752,-782.26661179,0.00015171,2]
[347942321,1736231351774,-500.0,0.00015171,2]
[347942322,1736231351797,-500.0,0.00015171,2]
[347942323,1736231351823,-782.26661179,0.00015171,2]
[347942324,1736231351848,-500.0,0.00015171,2]
[347942325,1736231351870,-500.0,0.00015171,2]
[347942326,1736231351892,-500.0,0.00015171,2]
[347942327,1736231351915,-500.0,0.00015171,2]
[347942328,1736231351938,-782.26661179,0.00015171,2]
[347942329,1736231351959,-500.0,0.00015171,2]
[347942330,1736231351980,-500.0,0.00015171,2]
[347942331,1736231352003,-782.26661179,0.00015171,2]
[347942332,1736231352025,-782.26661179,0.00015171,2]
[347942333,1736231352047,-500.0,0.00015171,2]
[347942334,1736231352069,-500.0,0.00015171,2]
[347942335,1736231352094,-500.0,0.00015171,2]
[347942336,1736231352117,-782.26661179,0.00015171,2]
[347942337,1736231352139,-500.0,0.00015171,2]
[347942338,1736231352162,-592.84505054,0.00015171,2]
[347942339,1736231352185,-782.26661179,0.00015171,2]
[347942340,1736231352207,-500.0,0.00015171,2]
[347942341,1736231352229,-500.0,0.00015171,2]
[347942342,1736231352253,-782.26661179,0.00015171,2]
[347942343,1736231352275,-500.0,0.00015171,2]
[347942344,1736231352296,-782.26661179,0.00015171,2]
[347942345,1736231352319,-500.0,0.00015171,2]
[347942346,1736231352343,-500.0,0.00015171,2]
[347942347,1736231352365,-782.26661179,0.00015171,2]
[347942348,1736231352388,-500.0,0.00015171,2]
[347942349,1736231352411,-782.26661179,0.00015171,2]
[347942350,1736231352431,-500.0,0.00015171,2]
[347942351,1736231352455,-782.26661179,0.00015171,2]
[347942352,1736231352477,-500.0,0.00015171,2]
[347942353,1736231352500,-782.26661179,0.00015171,2]
[347942354,1736231352521,-500.0,0.00015171,2]
[347942355,1736231352543,-782.26661179,0.00015171,2]
[347942356,1736231352565,-782.26661179,0.00015171,2]
[347942357,1736231352590,-500.0,0.00015171,2]
[347942358,1736231352614,-782.26661179,0.00015171,2]
[347942359,1736231352637,-782.26661179,0.00015171,2]
[347942360,1736231352659,-500.0,0.00015171,2]
[347942361,1736231352681,-782.26661179,0.00015171,2]
[347942362,1736231352704,-782.26661179,0.00015171,2]
[347942363,1736231352726,-782.26661179,0.00015171,2]
[347942364,1736231352749,-782.26661179,0.00015171,2]
[347942365,1736231352772,-782.26661179,0.00015171,2]
[347942366,1736231352795,-782.26661179,0.00015171,2]
[347942367,1736231352818,-782.26661179,0.00015171,2]
[347942368,1736231352844,-782.26661179,0.00015171,2]
[347942369,1736231352867,-782.26661179,0.00015171,2]
[347942370,1736231352889,-782.26661179,0.00015171,2]
[347942371,1736231352913,-782.26661179,0.00015171,2]
[347942372,1736231352935,-782.26661179,0.00015171,2]
[347942373,1736231352959,-782.26661179,0.00015171,2]
[347942374,1736231352982,-782.26661179,0.00015171,2]
[347942375,1736231353004,-782.26661179,0.00015171,2]
[347942376,1736231353027,-782.26661179,0.00015171,2]
[347942377,1736231353048,-500.0,0.00015171,2]
[347942378,1736231353070,-782.26661179,0.00015171,2]
[347942379,1736231353096,-782.26661179,0.00015171,2]
[347942380,1736231353118,-782.26661179,0.00015171,2]
[347942381,1736231353140,-782.26661179,0.00015171,2]
[347942382,1736231353167,-782.26661179,0.00015171,2]
[347942383,1736231353191,-782.26661179,0.00015171,2]
[347942384,1736231353213,-782.26661179,0.00015171,2]
[347942385,1736231353234,-782.26661179,0.00015171,2]
[347942386,1736231353257,-782.26661179,0.00015171,2]
[347942387,1736231353278,-782.26661179,0.00015171,2]
[347942388,1736231353301,-782.26661179,0.00015171,2]
[347942389,1736231353323,-782.26661179,0.00015171,2]
[347942390,1736231353348,-782.26661179,0.00015171,2]
[347942391,1736231353370,-782.26661179,0.00015171,2]
[347942392,1736231353392,-782.26661179,0.00015171,2]
[347942393,1736231353413,-500.0,0.00015171,2]
[347942394,1736231353434,-500.0,0.00015171,2]
[347942395,1736231353458,-579.28450505,0.00015171,2]
[347942396,1736231353481,-500.0,0.00015171,2]
[347942397,1736231353504,-500.0,0.00015171,2]
[347942398,1736231353525,-500.0,0.00015171,2]
[347942399,1736231353546,-500.0,0.00015171,2]
[347942400,1736231353567,-500.0,0.00015171,2]
[347942401,1736231353593,-500.0,0.00015171,2]
[347942402,1736231353616,-500.0,0.00015171,2]
[347942403,1736231353639,-771.09137449,0.00015171,2]
[347942404,1736231353660,-500.0,0.00015171,2]
[347942405,1736231353683,-771.09137449,0.00015171,2]
[347942406,1736231353706,-771.09137449,0.00015171,2]
[347942407,1736231353728,-771.09137449,0.00015171,2]
[347942408,1736231353750,-500.0,0.00015171,2]
[347942409,1736231353773,-771.09137449,0.00015171,2]
[347942410,1736231353795,-771.09137449,0.00015171,2]
[347942411,1736231353817,-500.0,0.00015171,2]
[347942412,1736231353854,-771.09137449,0.00015171,2]
[347942413,1736231353876,-771.09137449,0.00015171,2]
[347942414,1736231353899,-500.0,0.00015171,2]
[347942415,1736231353921,-771.09137449,0.00015171,2]
[347942416,1736231353943,-771.09137449,0.00015171,2]
[347942417,1736231353966,-771.09137449,0.00015171,2]
[347942418,1736231353987,-771.09137449,0.00015171,2]
[347942419,1736231354010,-771.09137449,0.00015171,2]
[347942420,1736231354032,-771.09137449,0.00015171,2]
[347942421,1736231354054,-771.09137449,0.00015171,2]
[347942422,1736231354076,-771.09137449,0.00015171,2]
[347942423,1736231354214,-771.09137449,0.00015171,2]
[347942424,1736231354243,-771.09137449,0.00015171,2]
[347942425,1736231354265,-771.09137449,0.00015171,2]
[347942426,1736231354288,-771.09137449,0.00015171,2]
[347942427,1736231354311,-771.09137449,0.00015171,2]
[347942428,1736231354336,-899.60660346,0.00015171,2]
[347942429,1736231354358,-500.0,0.00015173,2]
[347942430,1736231354379,-500.0,0.00015173,2]
[347942431,1736231354399,-268.32856016,0.00015173,2]
[347942432,1736231354419,-500.0,0.00015173,2]
[347942433,1736231354439,-502.93315716,0.00015173,2]
[347942434,1736231354461,-468.80595055,0.00015173,2]
[347942435,1736231354482,-500.0,0.00015173,2]
[347942436,1736231354502,-413.38624646,0.00015173,2]
[347942437,1736231354522,-500.0,0.00015173,2]
[347942438,1736231354541,-224.63167106,0.00015173,2]
[347942439,1736231354562,-586.81272642,0.00015173,2]
[347942440,1736231354585,-500.0,0.00015173,2]
[347942441,1736231354605,-20685.61507575,0.00015174,2]
[347942442,1736231354627,-94681.86477527,0.00015174,2]
[347942443,1736231354647,-221.04056829,0.00015174,2]
[347942444,1736231354667,-840.82952934,0.00015174,2]
[347942445,1736231354687,-151.0,0.00015177,2]
[347942446,1736231354707,-151.0,0.00015177,2]
[347942447,1736231354727,-151.0,0.00015177,2]
[347942448,1736231354746,-151.0,0.00015177,2]
[347942449,1736231354767,-279.709164,0.00015177,2]
[347942450,1736231354788,-588.973975,0.0001518,2]
[347942451,1736231354809,-588.973975,0.0001518,2]
[347942452,1736231354831,-588.973975,0.0001518,2]
[347942453,1736231354851,-588.973975,0.0001518,2]
[347942454,1736231354871,-588.973975,0.0001518,2]
[347942455,1736231354892,-588.973975,0.0001518,2]
[347942456,1736231354912,-588.973975,0.0001518,2]
[347942457,1736231354933,-588.973975,0.0001518,2]
[347942458,1736231354955,-588.973975,0.0001518,2]
[347942459,1736231354976,-588.973975,0.0001518,2]
[347942460,1736231354996,-588.973975,0.0001518,2]
[347942461,1736231355017,-588.973975,0.0001518,2]
[347942462,1736231355038,-588.973975,0.0001518,2]
[347942463,1736231355058,-588.973975,0.0001518,2]
[347942464,1736231355081,-588.973975,0.0001518,2]
[347942465,1736231355101,-588.973975,0.0001518,2]
[347942466,1736231355122,-41428.170237,0.00015183,2]
[347942467,1736231355144,-151.0,0.00015183,2]
[347942468,1736231355168,-151.0,0.00015183,2]
[347942469,1736231355189,-588.973975,0.00015183,2]
[347942470,1736231355209,-588.973975,0.00015183,2]
[347942471,1736231355230,-152.0,0.00015213,2]
[347942472,1736231355251,-192.0,0.00015555,2]
[347942473,1736231355272,-195.7024162,0.00015628,2]
[347942474,1736231355293,-504.0903109,0.00015721,2]
[347942475,1736231355313,-500.0,0.00015721,2]
[347942476,1736231355336,-505.85895891,0.00015721,2]
[347942477,1736231355356,-1000.0,0.00015721,2]
[347942478,1736231355378,-513.80155854,0.00015754,2]
[347942479,1736231355398,-271.59758712,0.00015754,2]
[347942480,1736231355419,-200.18455524,0.00015754,2]
[347942481,1736231355440,-554.39030955,0.00015754,2]
[347942482,1736231355463,-500.0,0.00015754,2]
[347942483,1736231355487,-151.0,0.00015824,2]
[347942484,1736231355509,-151.0,0.00015824,2]
[347942485,1736231355530,-151.0,0.00015824,2]
[347942486,1736231355551,-151.0,0.00015824,2]
[347942487,1736231355572,-151.0,0.00015824,2]
[347942488,1736231355597,-151.0,0.00015824,2]
[347942489,1736231355618,-151.0,0.00015824,2]
[347942490,1736231355640,-151.0,0.00015824,2]
[347942491,1736231355662,-151.0,0.00015824,2]
[347942492,1736231355684,-151.0,0.00015824,2]
[347942493,1736231355705,-151.0,0.00015824,2]
[347942494,1736231355726,-151.0,0.00015824,2]
[347942495,1736231355747,-151.0,0.00015824,2]
[347942496,1736231355767,-151.0,0.00015824,2]
[347942497,1736231355788,-151.0,0.00015824,2]
[347942498,1736231355811,-216.51517252,0.00015824,2]
[347942499,1736231355835,-1506.9473023,0.00015986,2]
[347942500,1736231355855,-500.0,0.00016067,2]
[347942501,1736231355876,-530.14132777,0.00016077,2]
[347942502,1736231355897,-6624.3617996,0.00016109,2]
[347942503,1736231355917,-151.0,0.00016109,2]
[347942504,1736231355938,-727.14022229,0.00016228,2]
[347942505,1736231355959,-500.64186359,0.00016302,2]
[347942506,1736231355981,-588.973975,0.00016438,2]
[347942507,1736231356002,-588.97396926,0.00016438,2]
[347942508,1736231356023,-261.27437681,0.00016438,2]
[347942509,1736231356043,-420.0,0.000166,2]
[347942510,1736231356064,-1000.0,0.00016615,2]
[347942511,1736231356088,-1500.0,0.00016722,2]
[347942512,1736231356108,-151.0,0.0001696,2]
[347942513,1736231356129,-500.0,0.00016969,2]
[347942514,1736231356150,-151.0,0.0001697,2]
[347942515,1736231356174,-151.0,0.0001697,2]